bitfinex-derivatives/quotes_SOLF0:USTF0_20250110
["timestamp","ask_amount","ask_price","bid_price","bid_amount"]
[1736487819999,142.59851408,191.27,191.14,1.584]
[1736487820200,141.78634482,191.27,191.14,1.584]
[1736487820897,2.6152,191.22,191.17,2.6157]
[1736487821099,2.6152,191.22,191.14,1.584]
[1736487821294,1.5922,191.28,191.14,1.584]
[1736487821503,0.81214358,191.27,191.14,1.584]
[1736487821693,2.6151,191.23,191.17,2.6157]
[1736487822801,2.6151,191.22,191.17,2.6157]
[1736487823003,2.6151,191.22,191.14,1.584]
[1736487823204,16.83905835,191.26,191.14,1.584]
[1736487823502,16.83905835,191.26,191.1,16.83905835]
[1736487823802,0.81223685,191.25,191.1,16.83905835]
[1736487824000,4.98,191.24,191.1,16.83905835]
[1736487824396,16.83905835,191.23,191.07,18.37565835]
[1736487824590,18.44935835,191.23,191.07,18.37565835]
[1736487825000,2.6158,191.18,191.13,2.6163]
[1736487827805,2.6155,191.19,191.13,2.6163]
[1736487829907,2.6159,191.16,191.07,18.37565835]
[1736487830802,2.6159,191.16,191.11,2.6165]
[1736487832211,18.44935835,191.23,191.07,18.37565835]
[1736487833111,4.96,191.22,191.12,2.6164]
[1736487833811,4.96,191.22,191.07,18.37565835]
[1736487834008,4.96,191.22,191.1,16.83905835]
[1736487834205,2.615,191.23,191.11,1.6177]
[1736487834407,2.615,191.23,191.18,2.6155]
[1736487834913,2.615,191.23,191.19,2.6155]
[1736487838806,2.615,191.23,191.18,2.6156]
[1736487839010,8.0493,191.28,191.14,1.5254]
[1736487839918,2.6152,191.22,191.17,2.6158]
[1736487840615,16.83905835,191.26,191.11,1.6177]
[1736487840807,16.83905835,191.23,191.11,1.6177]
[1736487841012,2.6159,191.16,191.11,4.2342]
[1736487841617,2.6159,191.16,191.11,2.6165]
[1736487843009,4.94,191.19,191.11,2.6165]
[1736487843214,2.6161,191.15,191.11,2.6165]
[1736487847931,10.51784084,191.18,191.08,1.5587]
[1736487848225,10.51784084,191.11,191.02,7.07537182]
[1736487848521,2.6175,191.05,191.02,7.07537182]
[1736487848726,4.9,191.04,191.02,7.07537182]
[1736487848926,15.41784084,191.04,191.02,7.07537182]
[1736487849324,15.41784084,191.04,190.96,1.6246]
[1736487849626,2.6177,191.03,190.97,2.6184]
[1736487850127,2.6178,191.02,190.97,2.6184]
[1736487850523,2.6178,191.02,190.96,1.6246]
[1736487850721,15.41784084,191.04,190.96,1.6246]
[1736487850924,2.618,191.01,190.96,1.6246]
[1736487852024,2.618,191.01,190.96,4.2433]
[1736487852527,2.6175,191.05,190.99,2.6182]
[1736487852829,4.9,191.03,190.96,1.6246]
[1736487853128,4.9,191.03,190.98,2.6184]
[1736487853327,4.9,191.03,190.96,1.6246]
[1736487854224,2.6178,191.02,190.97,2.6185]
[1736487854423,4.9,191.03,190.96,1.6246]
[1736487854726,2.6179,191.01,190.96,4.2432]
[1736487855531,2.6178,191.02,190.96,4.2432]
[1736487856028,4.9,191.03,190.98,2.6183]
[1736487856629,4.9,191.03,190.96,1.6246]
[1736487857932,2.6179,191.01,190.96,4.2432]
[1736487858333,7.4979,191.01,190.96,4.2432]
[1736487858534,7.4979,191.01,190.96,2.6186]
[1736487864743,4.88,191.01,190.91,1.5075]
[1736487865144,2.6185,190.97,190.92,2.6191]
[1736487866144,4.88,191.01,190.91,1.5075]
[1736487866739,4.88,191.01,190.92,2.619]
[1736487867238,4.88,191.01,190.91,1.5075]
[1736487867539,2.6185,190.98,190.93,2.619]
[1736487868245,16.85473422,191.05,190.91,1.5075]
[1736487868451,4.84,191.04,190.91,1.5075]
[1736487868846,2.6177,191.03,190.97,2.6183]
[1736487869351,2.6177,191.03,190.91,1.5075]
[1736487869352,2.6177,191.03,190.98,2.6183]
[1736487869740,2.6175,191.04,190.91,1.5075]
[1736487869947,4.84,191.03,190.91,1.5075]
[1736487870450,4.84,191.03,190.96,2.6185]
[1736487870853,2.618,191.01,190.96,2.6185]
[1736487872147,2.618,191.01,190.97,2.6184]
[1736487873450,10.53370119,191.0,190.95,2.6187]
[1736487873655,10.53370119,191.0,190.91,1.5075]
[1736487873950,2.6183,190.98,190.93,2.619]
[1736487876952,10.53370119,191.0,190.91,1.5075]
[1736487877257,10.53370119,191.0,190.95,2.6187]
[1736487878258,2.6182,190.99,190.95,2.6187]
[1736487879859,2.6182,190.99,190.94,2.6188]
[1736487880653,2.6182,190.99,190.95,2.6187]
[1736487881856,13.15180119,191.0,190.95,2.6187]
[1736487882455,10.53370119,191.0,190.91,1.5075]
[1736487882663,15.37370119,191.0,190.97,2.6183]
[1736487883258,17.99190119,191.0,190.95,2.6187]
[1736487883453,15.37370119,191.0,190.95,2.6187]
[1736487885154,2.6183,190.99,190.95,2.6187]
[1736487886461,2.6179,191.02,190.91,1.5075]
[1736487886661,15.37370119,191.03,190.93,10.53370119]
[1736487886857,17.99140119,191.03,190.93,10.53370119]
[1736487887059,17.99140119,191.03,190.98,2.6182]
[1736487887361,17.99140119,191.03,190.93,12.03720119]
[1736487887960,7.4577,191.03,190.93,12.03720119]
[1736487888160,2.6177,191.03,190.93,12.03720119]
[1736487889364,2.6177,191.03,190.98,2.6182]
[1736487890263,13.15140119,191.03,190.98,2.6182]
[1736487891858,17.99140119,191.03,190.98,2.6182]
[1736487892465,2.6181,191.0,190.96,2.6186]
[1736487892659,10.53370119,191.0,190.91,1.5075]
[1736487893560,10.53370119,190.97,190.93,2.6189]
[1736487894964,10.53370119,190.97,190.92,2.6191]
[1736487895160,10.53370119,190.97,190.86,3.2108]
[1736487895567,10.53370119,190.97,190.91,2.6192]
[1736487895961,2.6187,190.96,190.86,3.2108]
[1736487896162,10.53370119,190.97,190.92,2.6189]
[1736487896468,10.53370119,190.97,190.87,10.53370119]
[1736487896665,10.53370119,190.97,190.94,2.6186]
[1736487896861,10.53370119,190.97,190.87,10.53370119]
[1736487897961,9.0056,190.99,190.94,2.6187]
[1736487898161,2.6182,190.98,190.94,2.6187]
[1736487898365,10.53370119,191.0,190.9,10.53370119]
[1736487898669,10.53370119,191.0,190.86,10.28617182]
[1736487898670,4.82,191.01,190.93,10.53370119]
[1736487898858,4.82,191.01,190.96,2.6185]
[1736487899165,10.53370119,191.03,190.94,1.5445]
[1736487899568,4.82,191.05,190.94,1.5445]
[1736487899867,4.82,191.07,190.96,10.53370119]
[1736487900070,4.82,191.07,190.99,2.6181]
[1736487900275,10.53370119,191.09,190.99,10.53370119]
[1736487900464,10.53370119,191.12,191.02,10.53370119]
[1736487900666,3.0171,191.14,191.02,10.53370119]
[1736487900667,7.8371,191.14,191.03,1.518]
[1736487900963,1.4971,191.14,191.03,3.0254]
[1736487901265,141.78634482,191.18,191.08,2.6168]
[1736487901266,2.6158,191.17,191.08,2.6168]
[1736487901467,10.53370119,191.15,191.05,10.53370119]
[1736487901763,10.53370119,191.12,191.04,1.6266]
[1736487901964,10.53370119,191.12,191.04,4.244]
[1736487903066,2.6167,191.1,191.04,4.244]
[1736487903267,10.53370119,191.12,191.04,4.244]
[1736487903870,2.6165,191.11,191.04,4.244]
[1736487904170,10.53370119,191.12,191.05,2.6173]
[1736487905072,2.6165,191.11,191.05,2.6173]
[1736487905264,10.53370119,191.12,191.03,4.1355]
[1736487905469,10.53370119,191.12,191.03,1.518]
[1736487906672,2.6169,191.09,191.03,1.518]
[1736487906861,10.53370119,191.09,190.96,13.70220119]
[1736487907067,10.53370119,191.06,190.96,13.70220119]
[1736487907369,13.15100119,191.06,190.99,2.6181]
[1736487907570,10.53370119,191.06,190.99,2.6181]
[1736487908673,13.15100119,191.06,190.99,2.6181]
[1736487909469,10.53370119,191.1,190.94,1.6154]
[1736487909674,10.53370119,191.03,190.94,1.6154]
[1736487910065,10.53370119,191.0,190.94,2.6187]
[1736487911179,2.6182,190.99,190.94,2.6187]
[1736487911373,2.6182,190.99,190.93,2.6189]
[1736487912076,13.15220119,190.97,190.87,2.6197]
[1736487912375,13.15220119,190.97,190.86,10.53370119]
[1736487912772,10.53370119,190.97,190.92,2.619]
[1736487912972,10.53370119,191.0,190.87,1.5933]
[1736487913370,2.6183,190.98,190.91,2.6191]
[1736487914082,2.6184,190.97,190.91,2.6191]
[1736487914679,13.15210119,190.97,190.91,2.6191]
[1736487915581,10.53370119,190.94,190.81,17.60907301]
[1736487915775,10.53370119,190.94,190.84,10.53370119]
[1736487915983,4.84,190.95,190.84,10.53370119]
[1736487916282,15.37370119,190.95,190.84,10.53370119]
[1736487916877,2.6189,190.93,190.87,2.6197]
[1736487917983,4.84,190.95,190.87,10.53370119]
[1736487918282,4.84,190.95,190.88,1.6413]
[1736487918481,7.4587,190.95,190.9,2.6193]
[1736487918880,4.84,190.95,190.88,1.6413]
[1736487919086,2.6189,190.93,190.88,1.6413]
[1736487919284,4.84,190.95,190.87,2.6196]
[1736487919986,4.84,190.95,190.89,2.6193]
[1736487920181,4.84,190.95,190.84,10.53370119]
[1736487921088,2.6188,190.94,190.88,2.6195]
[1736487922585,4.84,190.95,190.84,10.53370119]
[1736487922786,2.6192,190.92,190.86,2.6198]
[1736487925590,2.6192,190.91,190.86,2.6198]
[1736487925788,2.6192,190.91,190.82,1.5736]
[1736487925789,10.53370119,190.93,190.85,2.62]
[1736487927092,2.6193,190.9,190.85,2.62]
[1736487927689,10.53370119,190.93,190.82,1.5736]
[1736487927884,213.4452963,191.14,190.82,1.5736]
[1736487928091,10.53370119,190.97,190.87,10.53370119]
[1736487928286,10.53370119,190.97,190.88,1.4803]
[1736487928493,2.6183,190.98,190.88,1.4803]
[1736487928788,2.6183,190.98,190.89,1.4796]
[1736487929187,2.6183,190.98,190.92,2.6189]
[1736487929387,2.6184,190.97,190.92,2.6189]
[1736487931288,4.8,190.99,190.92,2.6189]
[1736487931483,2.6185,190.96,190.92,2.6189]
[1736487933689,2.619,190.93,190.88,4.0999]
[1736487934292,2.6194,190.9,190.85,2.6199]
[1736487934496,4.8,190.99,190.83,1.592]
[1736487934497,10.53370119,190.94,190.83,1.592]
[1736487935095,2.6192,190.91,190.85,2.62]
[1736487935397,10.53370119,190.94,190.85,2.62]
[1736487936693,2.6193,190.9,190.85,2.62]
[1736487938093,2.6196,190.88,190.83,2.6202]
[1736487938293,10.53370119,190.91,190.81,1.4826]
[1736487938494,15.31370119,190.91,190.81,1.4826]
[1736487939488,2.6196,190.88,190.83,2.6202]
[1736487940390,15.31370119,190.91,190.83,2.6202]
[1736487940590,2.6198,190.87,190.83,2.6202]
[1736487940802,10.53370119,190.88,190.81,2.6204]
[1736487941394,2.6199,190.86,190.81,2.6204]
[1736487941701,10.53370119,190.88,190.81,2.6204]
[1736487942101,10.53370119,190.88,190.76,4.6929]
[1736487942407,10.53370119,190.85,190.76,1.5458]
[1736487943499,10.53370119,190.88,190.76,1.5458]
[1736487943701,10.53370119,190.88,190.77,10.53370119]
[1736487943896,2.6196,190.88,190.77,12.10120119]
[1736487944408,2.6197,190.87,190.81,2.6204]
[1736487944600,2.6197,190.87,190.77,12.10120119]
[1736487945000,2.6197,190.87,190.82,2.6203]
[1736487946002,2.62,190.85,190.79,2.6207]
[1736487946598,10.53370119,190.88,190.77,12.10120119]
[1736487946802,2.6198,190.87,190.82,2.6204]
[1736487947310,2.6198,190.87,190.81,2.6206]
[1736487947507,2.6201,190.85,190.77,1.5675]
[1736487947810,10.53370119,190.85,190.76,1.5458]
[1736487948211,2.6204,190.83,190.77,2.621]
[1736487948512,10.53370119,190.85,190.77,2.621]
[1736487949210,10.53370119,190.85,190.76,1.5458]
[1736487949407,10.53370119,190.85,190.75,5.26237952]
[1736487950309,2.6205,190.82,190.76,2.6213]
[1736487951208,2.6207,190.8,190.75,2.6214]
[1736487951608,10.53370119,190.79,190.73,63.30565985]
[1736487951809,2.6211,190.78,190.73,65.92715985]
[1736487952107,2.6211,190.78,190.73,2.6215]
[1736487953613,10.53370119,190.79,190.66,1.5183]
[1736487953812,10.53370119,190.76,190.66,3.1199]
[1736487955114,13.15500119,190.76,190.71,2.6219]
[1736487955314,10.53370119,190.76,190.71,2.6219]
[1736487955507,15.29370119,190.82,190.71,10.53370119]
[1736487956515,2.6208,190.8,190.71,10.53370119]
[1736487957015,10.53370119,190.76,190.62,28.07812548]
[1736487957206,13.15550119,190.73,190.67,2.6224]
[1736487958014,10.53370119,190.73,190.67,2.6224]
[1736487958215,2.6218,190.72,190.67,2.6224]
[1736487958418,10.53370119,190.73,190.65,2.6226]
[1736487958614,2.6221,190.71,190.65,2.6226]
[1736487959213,13.15580119,190.7,190.65,2.6226]
[1736487959716,10.53370119,190.7,190.65,2.6226]
[1736487960515,10.53370119,190.7,190.62,1.6272]
[1736487960718,10.53370119,190.7,190.6,1.566]
[1736487960919,2.6225,190.67,190.6,1.566]
[1736487961120,2.6225,190.67,190.61,2.6233]
[1736487961309,13.15620119,190.67,190.61,2.6233]
[1736487961513,2.6227,190.66,190.6,2.6234]
[1736487961811,176.86990918,190.98,190.59,1.5463]
[1736487962007,13.15430119,190.81,190.75,2.6214]
[1736487962211,10.53370119,190.81,190.7,10.53370119]
[1736487962409,10.53370119,190.81,190.69,4.76]
[1736487962619,13.15440119,190.81,190.74,2.6215]
[1736487962814,10.53370119,190.83,190.71,10.53370119]
[1736487963016,10.53370119,190.8,190.69,4.76]
[1736487963219,10.53370119,190.77,190.68,3.1152]
[1736487963418,10.53370119,190.77,190.63,4.76]
[1736487963616,10.53370119,190.74,190.63,4.76]
[1736487964122,15.29370119,190.74,190.62,10.53370119]
[1736487964330,2.6219,190.71,190.63,2.6229]
[1736487964517,15.29370119,190.74,190.63,2.6229]
[1736487964716,10.53370119,190.71,190.63,2.6229]
[1736487965119,2.6222,190.69,190.63,2.6229]
[1736487966119,2.6224,190.68,190.61,3.0979]
[1736487966416,10.53370119,190.71,190.56,15.29370119]
[1736487966619,2.6227,190.65,190.59,2.6235]
[1736487967016,1.5503,190.79,190.62,10.53370119]
[1736487967216,2.6211,190.77,190.7,2.6219]
[1736487967421,1.5503,190.79,190.66,10.53370119]
[1736487967818,2.6215,190.75,190.66,10.53370119]
[1736487968019,1.5503,190.79,190.66,10.53370119]
[1736487968723,10.53370119,190.77,190.63,10.53370119]
[1736487969324,2.6219,190.72,190.66,2.6225]
[1736487969523,10.53370119,190.74,190.61,4.7739]
[1736487969721,1.5921,190.73,190.61,4.7739]
[1736487970024,2.6223,190.68,190.61,4.7739]
[1736487970525,10.53370119,190.68,190.51,7.07537182]
[1736487970727,10.53370119,190.68,190.54,10.53370119]
[1736487971224,10.53370119,190.68,190.58,2.6237]
[1736487971225,2.6226,190.66,190.58,2.6237]
[1736487971423,10.53370119,190.68,190.54,10.53370119]
[1736487973223,2.6227,190.65,190.54,10.53370119]
[1736487973419,10.53370119,190.68,190.54,10.53370119]
[1736487973623,10.53370119,190.65,190.55,2.6241]
[1736487973815,10.53370119,190.62,190.52,4.5928]
[1736487974220,4.8,190.61,190.48,38.61182667]
[1736487974621,2.6238,190.58,190.5,2.6247]
[1736487974822,10.53370119,190.59,190.48,10.53370119]
[1736487975021,10.53370119,190.62,190.48,10.53370119]
[1736487975221,4.8,190.62,190.54,10.53370119]
[1736487975434,2.6231,190.63,190.54,10.53370119]
[1736487975927,2.6234,190.6,190.54,10.53370119]
[1736487976128,10.53370119,190.63,190.51,10.53370119]
[1736487976622,4.1125,190.64,190.54,10.53370119]
[1736487976822,1.4895,190.64,190.54,10.53370119]
[1736487977224,2.6231,190.62,190.54,10.53370119]
[1736487977923,1.4895,190.64,190.54,10.53370119]
[1736487978228,4.8,190.67,190.54,10.53370119]
[1736487978529,4.8,190.67,190.58,2.6236]
[1736487978530,7.4226,190.67,190.58,2.6236]
[1736487978830,4.8,190.67,190.55,4.731]
[1736487979128,2.6226,190.66,190.55,4.731]
[1736487979633,2.6231,190.63,190.57,2.6237]
[1736487980627,10.53370119,190.66,190.55,4.731]
[1736487981428,2.6227,190.65,190.59,2.6235]
[1736487982128,10.53370119,190.66,190.55,4.731]
[1736487983123,2.6233,190.62,190.57,2.6238]
[1736487983825,2.623,190.64,190.59,2.6235]
[1736487985428,2.6225,190.67,190.62,2.6231]
[1736487985623,15.35370119,190.71,190.58,10.53370119]
[1736487986129,2.6223,190.69,190.63,2.6229]
[1736487986530,10.53370119,190.71,190.63,2.6229]
[1736487986932,10.53370119,190.71,190.6,2.6233]
[1736487987135,10.53370119,190.68,190.55,15.26470119]
[1736487989129,2.6229,190.64,190.59,2.6235]
[1736487989938,10.53370119,190.65,190.57,2.6238]
[1736487990332,4.8,190.64,190.55,4.731]
[1736487990527,7.423,190.64,190.55,4.731]
[1736487990735,1.495,190.72,190.6,10.53370119]
[1736487991238,2.6219,190.71,190.63,2.6229]
[1736487991437,2.6219,190.71,190.6,10.53370119]
[1736487991834,2.6219,190.71,190.63,10.53370119]
[1736487992940,2.6219,190.71,190.66,2.6226]
[1736487994337,2.6215,190.74,190.69,2.6222]
[1736487994843,2.6215,190.74,190.63,3.2276]
[1736487995133,1.5141,190.77,190.64,16.9028845]
[1736487995335,16.9028845,190.81,190.64,16.9028845]
[1736487995651,1.4943,190.82,190.67,16.9028845]
[1736487995938,1.4943,190.82,190.69,16.9028845]
[1736487996140,1.4943,190.82,190.7,1.4923]
[1736487996540,16.9028845,190.81,190.7,1.4923]
[1736487996738,16.9028845,190.81,190.64,7.07537182]
[1736487996938,16.9028845,190.81,190.64,8.56767182]
[1736487997137,16.9028845,190.81,190.68,2.6222]
[1736487997338,2.6212,190.76,190.64,1.4923]
[1736487997537,16.9028845,190.81,190.64,1.4923]
[1736487997740,16.9028845,190.81,190.69,2.6221]
[1736487997936,2.621,190.78,190.69,2.6221]
[1736487998143,16.9028845,190.81,190.69,2.6221]
[1736487998545,2.6213,190.76,190.64,1.4923]
[1736487999046,2.6213,190.76,190.69,2.6221]
[1736487999347,16.9028845,190.81,190.69,2.6221]
[1736487999841,16.9028845,190.81,190.69,2.6222]
[1736488000036,16.9028845,190.78,190.64,1.4923]
[1736488000442,2.6216,190.74,190.68,2.6222]
[1736488000739,4.82,190.76,190.64,1.4923]
[1736488002952,4.82,190.79,190.72,2.6217]
[1736488003245,21.7228845,190.81,190.72,2.6217]
[1736488003549,2.6209,190.79,190.72,2.6217]
[1736488003738,21.7228845,190.81,190.72,2.6217]
[1736488004249,2.6211,190.77,190.72,2.6217]
[1736488004452,21.7228845,190.81,190.73,2.6216]
[1736488004845,2.6209,190.78,190.73,2.6216]
[1736488005849,2.6211,190.77,190.72,2.6217]
[1736488006151,21.7228845,190.81,190.66,16.9028845]
[1736488006452,2.6205,190.81,190.76,2.6212]
[1736488006953,16.9028845,190.84,190.69,16.9028845]
[1736488007150,2.6204,190.82,190.73,2.6216]
[1736488007349,16.9028845,190.84,190.69,16.9028845]
[1736488007751,2.6207,190.8,190.74,2.6214]
[1736488007951,16.9028845,190.84,190.74,2.6214]
[1736488008254,16.9028845,190.84,190.66,16.9028845]
[1736488008558,2.6211,190.78,190.72,2.6216]
[1736488009755,2.6211,190.77,190.72,2.6216]
[1736488012350,2.621,190.78,190.73,2.6216]
[1736488021153,10.55812411,190.74,190.64,1.4923]
[1736488021559,2.6217,190.73,190.67,2.6224]
[1736488021853,10.55812411,190.74,190.67,2.6224]
[1736488022650,10.55812411,190.74,190.68,2.6223]
[1736488023051,2.6217,190.73,190.64,1.4923]
[1736488023252,10.55812411,190.77,190.65,10.55812411]
[1736488023452,4.82,190.78,190.73,2.6216]
[1736488023656,2.6212,190.77,190.68,10.55812411]
[1736488023853,4.82,190.78,190.68,10.55812411]
[1736488024153,2.6214,190.75,190.65,10.55812411]
[1736488024359,10.55812411,190.77,190.65,10.55812411]
[1736488024664,13.17922411,190.77,190.71,2.6218]
[1736488024859,10.55812411,190.77,190.71,2.6218]
[1736488027066,2.6214,190.75,190.71,2.6218]
[1736488028962,2.6217,190.73,190.68,2.6223]
[1736488029167,4.82,190.78,190.64,29.57042548]
[1736488029168,10.55812411,190.74,190.64,29.57042548]
[1736488030068,2.6221,190.7,190.66,2.6226]
[1736488030664,2.6219,190.71,190.66,2.6226]
[1736488031061,10.55812411,190.74,190.67,2.6224]
[1736488031269,2.6215,190.74,190.64,1.4923]
[1736488031462,13.59722411,190.77,190.64,1.4923]
[1736488031663,10.55812411,190.77,190.67,2.6223]
[1736488031862,2.6215,190.75,190.64,1.4923]
[1736488032065,10.55812411,190.74,190.64,1.4923]
[1736488032463,2.6215,190.75,190.64,1.4923]
[1736488032671,10.55812411,190.77,190.64,1.4923]
[1736488033271,141.78634482,190.88,190.64,1.4923]
[1736488033471,141.78634482,190.88,190.78,10.55812411]
[1736488033872,10.55812411,190.91,190.79,1.5173]
[1736488034275,2.6196,190.88,190.82,2.6203]
[1736488034474,2.6196,190.88,190.79,1.5173]
[1736488034976,2.62,190.85,190.79,1.5173]
[1736488035170,2.62,190.85,190.78,2.6208]
[1736488035171,10.55812411,190.85,190.75,12.08072411]
[1736488035378,2.6204,190.82,190.75,1.5226]
[1736488035874,2.6202,190.84,190.76,2.6212]
[1736488036078,2.6202,190.84,190.75,1.5226]
[1736488036482,4.86,190.85,190.75,1.5226]
[1736488036873,2.6203,190.83,190.76,2.6212]
[1736488038381,7.4801,190.85,190.79,2.6207]
[1736488038574,1.6132,190.87,190.77,16.88438498]
[1736488038774,2.6196,190.88,190.82,2.6204]
[1736488038972,4.84,190.9,190.78,1.6303]
[1736488039177,6.4597,190.93,190.8,16.88438498]
[1736488039376,6.4597,190.93,190.81,1.5783]
[1736488039581,2.6194,190.9,190.81,1.5783]
[1736488039973,23.34408498,190.93,190.81,1.5783]
[1736488040572,23.34408498,190.93,190.75,1.5226]
[1736488040779,23.34408498,190.93,190.78,2.6209]
[1736488041175,16.88438498,190.9,190.75,1.5226]
[1736488042882,16.88438498,190.9,190.78,2.6209]
[1736488042883,2.6203,190.83,190.78,2.6209]
[1736488046584,16.88438498,190.9,190.77,2.6211]
[1736488046881,2.6204,190.82,190.77,2.6211]
[1736488047882,2.6207,190.8,190.75,4.1438]
[1736488049392,4.82,190.84,190.68,16.88438498]
[1736488049393,21.70438498,190.84,190.68,16.88438498]
[1736488049685,16.88438498,190.81,190.66,4.7333]
[1736488049886,2.6217,190.73,190.66,4.7333]
[1736488050486,16.88438498,190.78,190.66,3.1572]
[1736488050685,1.6433,190.77,190.61,1.5761]
[1736488050891,1.6433,190.77,190.61,21.65698498]
[1736488051079,1.6433,190.77,190.65,2.6227]
[1736488051788,4.8,190.76,190.65,2.6227]
[1736488052088,2.6219,190.71,190.65,2.6227]
[1736488052591,2.6222,190.69,190.64,2.6229]
[1736488054497,2.622,190.71,190.65,2.6227]
[1736488054693,4.8,190.76,190.61,21.65698498]
[1736488054893,2.6222,190.7,190.64,2.6229]
[1736488055098,4.8,190.76,190.64,2.6229]
[1736488055590,2.6222,190.7,190.64,2.6229]
[1736488055795,4.8,190.76,190.64,2.6229]
[1736488055996,1.5993,190.75,190.64,2.6229]
[1736488056192,2.6222,190.7,190.64,2.6229]
[1736488056495,1.5993,190.75,190.64,2.6229]
[1736488056791,2.6222,190.69,190.64,2.6229]
[1736488057196,1.5993,190.75,190.61,4.7726]
[1736488057398,2.622,190.71,190.65,2.6227]
[1736488057694,1.5993,190.75,190.65,2.6227]
[1736488058992,2.6221,190.7,190.65,2.6227]
[1736488059197,1.5993,190.75,190.65,2.6227]
[1736488060390,1.5993,190.75,190.67,2.6224]
[1736488060602,4.78,190.74,190.67,2.6224]
[1736488060794,2.6219,190.72,190.67,2.6224]
[1736488061504,2.6219,190.72,190.64,10.5624916]
[1736488061801,2.6216,190.73,190.68,2.6223]
[1736488062592,2.6218,190.72,190.66,2.6225]
[1736488063603,2.6219,190.71,190.66,2.6225]
[1736488063802,4.78,190.75,190.66,2.6225]
[1736488064799,2.622,190.71,190.66,2.6225]
[1736488065298,4.78,190.75,190.62,16.90115526]
[1736488065499,2.6223,190.68,190.64,2.6228]
[1736488065905,2.6222,190.69,190.64,2.6228]
[1736488066106,4.78,190.75,190.61,4.7726]
[1736488066303,4.78,190.75,190.62,16.90115526]
[1736488067106,2.622,190.71,190.66,2.6225]
[1736488067406,4.78,190.75,190.62,16.90115526]
[1736488067907,2.6224,190.68,190.64,2.6228]
[1736488068606,2.6222,190.69,190.64,2.6228]
[1736488069706,2.6222,190.69,190.65,2.6227]
[1736488073110,2.622,190.71,190.66,2.6225]
[1736488074013,4.78,190.75,190.66,2.6225]
[1736488074218,2.622,190.7,190.66,2.6225]
[1736488075114,2.6217,190.73,190.61,4.7726]
[1736488075305,2.6217,190.73,190.63,16.90115526]
[1736488075911,2.6217,190.73,190.68,2.6222]
[1736488076104,2.6217,190.73,190.63,16.90115526]
[1736488076313,2.6215,190.74,190.63,16.90115526]
[1736488076710,2.6215,190.74,190.69,2.622]
[1736488077716,2.6216,190.73,190.69,2.622]
[1736488078415,2.6218,190.72,190.68,2.6223]
[1736488079311,2.6216,190.73,190.67,2.6224]
[1736488079614,2.6216,190.73,190.63,16.90115526]
[1736488080317,2.6213,190.75,190.66,16.90115526]
[1736488080518,4.76,190.79,190.66,16.90115526]
[1736488080712,2.6212,190.76,190.66,16.90115526]
[1736488081016,3.2494,190.82,190.69,16.90115526]
[1736488081316,1.6427,190.82,190.7,4.7691]
[1736488081516,2.6208,190.8,190.7,4.7691]
[1736488082512,2.6209,190.79,190.74,2.6214]
[1736488082717,2.6209,190.79,190.7,4.7691]
[1736488084212,2.6209,190.79,190.73,2.6215]
[1736488084613,2.6209,190.79,190.7,4.7691]
[1736488084812,4.74,190.84,190.7,4.7691]
[1736488085009,4.74,190.86,190.72,16.90115526]
[1736488085411,4.74,190.86,190.78,2.6209]
[1736488086315,2.6203,190.83,190.78,2.6209]
[1736488088123,2.6206,190.81,190.76,2.6211]
[1736488088425,10.55020754,190.85,190.72,10.55020754]
[1736488088717,4.74,190.86,190.75,10.55020754]
[1736488088911,6.311,190.87,190.75,10.55020754]
[1736488089318,2.6204,190.82,190.77,2.621]
[1736488090513,6.311,190.87,190.75,10.55020754]
[1736488090713,10.55020754,190.85,190.76,2.6212]
[1736488091123,2.6205,190.82,190.76,2.6212]
[1736488091518,10.55020754,190.85,190.76,2.6212]
[1736488091724,10.55020754,190.85,190.72,10.55020754]